[Event "Open Nuevo Centro. Jornada 1"]
[Site "Chess.com"]
[Date "2020.06.19"]
[Round "4"]
[White "Zamora Soler, Raul"]
[Black "Pitarch Soriano, Pablo"]
[Result "1-0"]
[WhiteElo "1746"]
[BlackElo "1078"]
[TimeControl "180+2"]
[EndTime "11:16:14 PDT"]
[Termination "Victoria de rzamora80 por jaque mate"]

1. e4 {[%clk 0:03:01.9]} 1... e5 {[%clk 0:03:00.8]} 2. Nf3 {[%clk 0:03:02.7]}
2... Nc6 {[%clk 0:03:02.2]} 3. d4 {[%clk 0:03:03.3]} 3... d6 {[%clk 0:03:01.2]}
4. dxe5 {[%clk 0:03:02]} 4... dxe5 {[%clk 0:03:01]} 5. Qxd8+ {[%clk 0:03:02.2]}
5... Kxd8 {[%clk 0:03:02]} 6. Bb5 {[%clk 0:03:02.5]} 6... Bd6 {[%clk 0:03:00]}
7. Bxc6 {[%clk 0:03:03.5]} 7... bxc6 {[%clk 0:03:01.9]} 8. Bd2 {[%clk 0:03:02]}
8... Nf6 {[%clk 0:03:01.6]} 9. Bg5 {[%clk 0:02:58.6]} 9... Ke7 {[%clk
0:02:58.6]} 10. Nbd2 {[%clk 0:02:57.9]} 10... Ba6 {[%clk 0:02:53.6]} 11. O-O-O
{[%clk 0:02:52.5]} 11... Ke8 {[%clk 0:02:53.6]} 12. Bxf6 {[%clk 0:02:49.3]}
12... gxf6 {[%clk 0:02:52.5]} 13. Nh4 {[%clk 0:02:50]} 13... Rg8 {[%clk
0:02:52.6]} 14. g3 {[%clk 0:02:46.4]} 14... Bb7 {[%clk 0:02:49.2]} 15. Nf5
{[%clk 0:02:46.6]} 15... Bb4 {[%clk 0:02:49]} 16. c3 {[%clk 0:02:47.1]} 16...
Bc5 {[%clk 0:02:49.1]} 17. f3 {[%clk 0:02:38.2]} 17... Rg5 {[%clk 0:02:46.2]}
18. g4 {[%clk 0:02:34.5]} 18... Bc8 {[%clk 0:02:45.8]} 19. Ng3 {[%clk
0:02:25.7]} 19... Be3 {[%clk 0:02:45.8]} 20. Kc2 {[%clk 0:02:25.8]} 20... Bxd2
{[%clk 0:02:46.4]} 21. Rxd2 {[%clk 0:02:26.8]} 21... Ba6 {[%clk 0:02:46.8]} 22.
Rhd1 {[%clk 0:02:20]} 22... Bb5 {[%clk 0:02:41.1]} 23. Rd7 {[%clk 0:02:19.7]}
23... Rc8 {[%clk 0:02:38.8]} 24. Nf5 {[%clk 0:02:18.5]} 24... c5 {[%clk
0:02:36.6]} 25. Re7+ {[%clk 0:02:18.8]} 25... Kf8 {[%clk 0:02:37.4]} 26. Rxc7
{[%clk 0:01:49.4]} 26... Rxc7 {[%clk 0:02:28.8]} 27. Rd8+ {[%clk 0:01:49.7]}
27... Be8 {[%clk 0:02:29.7]} 28. c4 {[%clk 0:01:37.6]} 28... h5 {[%clk
0:02:22.8]} 29. h3 {[%clk 0:01:37.9]} 29... hxg4 {[%clk 0:02:23.1]} 30. hxg4
{[%clk 0:01:31.4]} 30... Rd7 {[%clk 0:02:23.4]} 31. Ra8 {[%clk 0:01:27.7]} 31...
Rg8 {[%clk 0:02:21.2]} 32. b3 {[%clk 0:01:24.9]} 32... Rh8 {[%clk 0:02:20.1]}
33. Ne3 {[%clk 0:01:08]} 33... Rh3 {[%clk 0:02:19.2]} 34. Nd5 {[%clk 0:01:08.3]}
34... Rxf3 {[%clk 0:02:14.4]} 35. a4 {[%clk 0:01:07.1]} 35... Rg3 {[%clk
0:02:10]} 36. Nxf6 {[%clk 0:01:07.6]} 36... Ke7 {[%clk 0:02:09.3]} 37. Nxe8
{[%clk 0:00:52.9]} 37... Rd8 {[%clk 0:02:10]} 38. Rxd8 {[%clk 0:00:50.5]} 38...
Kxd8 {[%clk 0:02:11.9]} 39. Nd6 {[%clk 0:00:49.6]} 39... Rxg4 {[%clk 0:02:09.2]}
40. Nxf7+ {[%clk 0:00:50.7]} 40... Ke7 {[%clk 0:02:10.1]} 41. Nxe5 {[%clk
0:00:52]} 41... Rxe4 {[%clk 0:02:10.5]} 42. Nc6+ {[%clk 0:00:52.9]} 42... Kd6
{[%clk 0:02:09.9]} 43. Nxa7 {[%clk 0:00:52.3]} 43... Re2+ {[%clk 0:02:11]} 44.
Kc3 {[%clk 0:00:53.1]} 44... Re3+ {[%clk 0:02:11.1]} 45. Kc2 {[%clk 0:00:53.4]}
45... Re2+ {[%clk 0:02:10.7]} 46. Kd3 {[%clk 0:00:54.1]} 46... Rb2 {[%clk
0:02:10.8]} 47. Kc3 {[%clk 0:00:54.1]} 47... Rg2 {[%clk 0:02:10.3]} 48. Nb5+
{[%clk 0:00:55.3]} 48... Kc6 {[%clk 0:02:09.8]} 49. a5 {[%clk 0:00:56.5]} 49...
Ra2 {[%clk 0:02:07.5]} 50. b4 {[%clk 0:00:53.7]} 50... cxb4+ {[%clk 0:02:08.6]}
51. Kxb4 {[%clk 0:00:54.8]} 51... Rb2+ {[%clk 0:02:09.7]} 52. Ka3 {[%clk
0:00:52.6]} 52... Rc2 {[%clk 0:02:10.6]} 53. Kb3 {[%clk 0:00:53.5]} 53... Rd2
{[%clk 0:02:07.5]} 54. a6 {[%clk 0:00:54.1]} 54... Rd7 {[%clk 0:02:08.1]} 55. a7
{[%clk 0:00:54.5]} 55... Rd8 {[%clk 0:02:09.1]} 56. Kb4 {[%clk 0:00:52.2]} 56...
Ra8 {[%clk 0:02:08.5]} 57. c5 {[%clk 0:00:38.9]} 57... Kb7 {[%clk 0:02:08.7]}
58. Kc4 {[%clk 0:00:38.3]} 58... Kc6 {[%clk 0:02:09.2]} 59. Nd4+ {[%clk
0:00:37.9]} 59... Kb7 {[%clk 0:02:09.3]} 60. Nb5 {[%clk 0:00:36.7]} 60... Kc6
{[%clk 0:02:10.2]} 61. Kb4 {[%clk 0:00:38.1]} 61... Kb7 {[%clk 0:02:09.5]} 62.
Kb3 {[%clk 0:00:27.3]} 62... Ka6 {[%clk 0:02:09.6]} 63. Kc4 {[%clk 0:00:27.4]}
63... Kb7 {[%clk 0:02:09.7]} 64. Kd5 {[%clk 0:00:28]} 64... Ka6 {[%clk
0:02:10.7]} 65. Kc6 {[%clk 0:00:28]} 65... Ka5 {[%clk 0:02:11.5]} 66. Kb7 {[%clk
0:00:26.6]} 66... Rf8 {[%clk 0:02:10.5]} 67. c6 {[%clk 0:00:27.2]} 67... Kxb5
{[%clk 0:02:10.5]} 68. c7 {[%clk 0:00:27]} 68... Ka5 {[%clk 0:02:08.3]} 69.
a8=Q+ {[%clk 0:00:27.7]} 69... Rxa8 {[%clk 0:02:08.8]} 70. Kxa8 {[%clk
0:00:29.1]} 70... Kb6 {[%clk 0:02:10.6]} 71. c8=Q {[%clk 0:00:30.4]} 71... Kb5
{[%clk 0:02:11.6]} 72. Qc2 {[%clk 0:00:31]} 72... Kb4 {[%clk 0:02:12.2]} 73. Kb7
{[%clk 0:00:32.1]} 73... Ka5 {[%clk 0:02:12.7]} 74. Kc6 {[%clk 0:00:32]} 74...
Kb4 {[%clk 0:02:13]} 75. Kd5 {[%clk 0:00:28.9]} 75... Ka3 {[%clk 0:02:13.8]} 76.
Qb1 {[%clk 0:00:29.1]} 76... Ka4 {[%clk 0:02:14.3]} 77. Kc4 {[%clk 0:00:28.6]}
77... Ka3 {[%clk 0:02:12.7]} 78. Qb3# {[%clk 0:00:28.4]} 1

[Event "Open Nuevo Centro. Jornada 1"]
[Site "Chess.com"]
[Date "2020.06.19"]
[Round "4"]
[White "Garcia Trobat, Francisco"]
[Black "Martinez Villena, David"]
[Result "1-0"]
[WhiteElo "2226"]
[BlackElo "1711"]
[TimeControl "180+2"]
[EndTime "11:16:41 PDT"]
[Termination "Victoria de NoSure por tiempo"]

1. e4 {[%clk 0:03:01.9]} 1... c5 {[%clk 0:02:55.9]} 2. Nf3 {[%clk 0:03:01.6]}
2... d6 {[%clk 0:02:56.5]} 3. Bb5+ {[%clk 0:02:59.4]} 3... Nd7 {[%clk
0:02:56.5]} 4. c4 {[%clk 0:02:56.2]} 4... a6 {[%clk 0:02:54.6]} 5. Bxd7+ {[%clk
0:02:46.9]} 5... Bxd7 {[%clk 0:02:50.5]} 6. d4 {[%clk 0:02:39.8]} 6... cxd4
{[%clk 0:02:47.2]} 7. Nxd4 {[%clk 0:02:39.9]} 7... g6 {[%clk 0:02:42.3]} 8. O-O
{[%clk 0:02:37.2]} 8... Bg7 {[%clk 0:02:42.9]} 9. Nc3 {[%clk 0:02:32.9]} 9...
Nf6 {[%clk 0:02:38.8]} 10. b3 {[%clk 0:02:21.6]} 10... O-O {[%clk 0:02:34.4]}
11. Bb2 {[%clk 0:02:21.8]} 11... b5 {[%clk 0:02:27.3]} 12. Qe2 {[%clk
0:01:54.3]} 12... Rb8 {[%clk 0:02:08]} 13. cxb5 {[%clk 0:01:47.3]} 13... axb5
{[%clk 0:02:07.4]} 14. Nd5 {[%clk 0:01:39.3]} 14... b4 {[%clk 0:01:39.7]} 15.
Rfd1 {[%clk 0:01:34.9]} 15... Re8 {[%clk 0:01:36.4]} 16. e5 {[%clk 0:01:29.1]}
16... Nxd5 {[%clk 0:01:35.9]} 17. e6 {[%clk 0:01:28]} 17... fxe6 {[%clk
0:00:40.9]} 18. Nxe6 {[%clk 0:01:27.9]} 18... Bxb2 {[%clk 0:00:35.5]} 19. Nxd8
{[%clk 0:01:24.3]} 19... Bxa1 {[%clk 0:00:36]} 20. Rxa1 {[%clk 0:00:55.8]} 20...
Rbxd8 {[%clk 0:00:36.4]} 21. Qc4 {[%clk 0:00:53.7]} 21... Be6 {[%clk 0:00:34.4]}
22. Re1 {[%clk 0:00:52.8]} 22... Rc8 {[%clk 0:00:33.8]} 23. Qb5 {[%clk
0:00:49.4]} 23... Bf7 {[%clk 0:00:27.5]} 24. h4 {[%clk 0:00:42.3]} 24... Rc5
{[%clk 0:00:21.4]} 25. Qd7 {[%clk 0:00:39.7]} 25... Rec8 {[%clk 0:00:18.5]} 26.
h5 {[%clk 0:00:29.9]} 26... Rc1 {[%clk 0:00:17.7]} 27. Rxc1 {[%clk 0:00:28.2]}
27... Rxc1+ {[%clk 0:00:19.6]} 28. Kh2 {[%clk 0:00:29.8]} 28... Kg7 {[%clk
0:00:17.5]} 29. Qg4 {[%clk 0:00:25.7]} 29... Rc3 {[%clk 0:00:12.7]} 30. Qg5
{[%clk 0:00:24.1]} 30... Nf6 {[%clk 0:00:08.9]} 31. h6+ {[%clk 0:00:24.5]} 31...
Kf8 {[%clk 0:00:05.6]} 32. f3 {[%clk 0:00:25.9]} 32... Rc5 {[%clk 0:00:04.8]}
33. Qd2 {[%clk 0:00:25.7]} 33... Rh5+ {[%clk 0:00:06.3]} 34. Kg1 {[%clk
0:00:25.3]} 34... Nd7 {[%clk 0:00:06.3]} 35. Qxb4 {[%clk 0:00:25.6]} 35... Rxh6
{[%clk 0:00:06.4]} 36. Qb7 {[%clk 0:00:25.9]} 36... Ne5 {[%clk 0:00:04.4]} 37.
Qc8+ {[%clk 0:00:27]} 37... Kg7 {[%clk 0:00:04.2]} 38. Qd8 {[%clk 0:00:28.4]}
38... Kf6 {[%clk 0:00:04.2]} 39. a4 {[%clk 0:00:29.8]} 39... Rh5 {[%clk
0:00:03.5]} 40. a5 {[%clk 0:00:31.3]} 40... Nc6 {[%clk 0:00:04.6]} 41. Qh8+
{[%clk 0:00:28.8]} 41... Ke6 {[%clk 0:00:04.7]} 42. a6 {[%clk 0:00:29.5]} 42...
Ra5 {[%clk 0:00:03]} 43. Qc8+ {[%clk 0:00:28.5]} 43... Kf6 {[%clk 0:00:04.3]}
44. Qxc6 {[%clk 0:00:29.4]} 44... Be6 {[%clk 0:00:03.8]} 45. Kh2 {[%clk
0:00:30.5]} 45... Rh5+ {[%clk 0:00:04.4]} 46. Kg1 {[%clk 0:00:29.5]} 46... Bd5
{[%clk 0:00:04.9]} 47. Qc3+ {[%clk 0:00:30.6]} 47... Ke6 {[%clk 0:00:04.5]} 48.
Qd3 {[%clk 0:00:31.2]} 48... Rh4 {[%clk 0:00:03.1]} 49. a7 {[%clk 0:00:24.5]}
49... Rb4 {[%clk 0:00:03.2]} 50. Qxd5+ {[%clk 0:00:25.5]} 1

[Event "Open Nuevo Centro. Jornada 1"]
[Site "Chess.com"]
[Date "2020.06.19"]
[Round "4"]
[White "Alegre Romaguera, Francesc"]
[Black "Castellano L�pez, Javier"]
[Result "0-1"]
[WhiteElo "1219"]
[BlackElo "1752"]
[TimeControl "180+2"]
[EndTime "11:16:44 PDT"]
[Termination "Victoria de its_xavi_official por jaque mate"]

1. e4 {[%clk 0:03:01.9]} 1... d5 {[%clk 0:02:59]} 2. exd5 {[%clk 0:03:02.2]}
2... Qxd5 {[%clk 0:03:00.5]} 3. Nc3 {[%clk 0:03:01.1]} 3... Qa5 {[%clk
0:03:01.8]} 4. d4 {[%clk 0:03:01.6]} 4... c6 {[%clk 0:03:02.3]} 5. Bc4 {[%clk
0:03:02.3]} 5... Nf6 {[%clk 0:03:02.6]} 6. Ne2 {[%clk 0:03:01.4]} 6... Bg4
{[%clk 0:03:02.4]} 7. h3 {[%clk 0:02:51.8]} 7... Bh5 {[%clk 0:03:02.9]} 8. O-O
{[%clk 0:02:50.9]} 8... e6 {[%clk 0:03:03.1]} 9. f4 {[%clk 0:02:49.5]} 9... Bd6
{[%clk 0:02:51.6]} 10. g4 {[%clk 0:02:21.9]} 10... Bg6 {[%clk 0:02:49.8]} 11.
Ng3 {[%clk 0:02:20]} 11... h6 {[%clk 0:02:37.9]} 12. Qe2 {[%clk 0:02:18.6]}
12... O-O {[%clk 0:02:35.6]} 13. f5 {[%clk 0:02:16.2]} 13... exf5 {[%clk
0:02:34.7]} 14. Nxf5 {[%clk 0:02:09.4]} 14... Qc7 {[%clk 0:02:14.2]} 15. Nxh6+
{[%clk 0:01:38.8]} 15... gxh6 {[%clk 0:01:44.7]} 16. Bxh6 {[%clk 0:01:33.7]}
16... Re8 {[%clk 0:01:37.9]} 17. Qf2 {[%clk 0:01:24.8]} 17... Ne4 {[%clk
0:01:23.2]} 18. Nxe4 {[%clk 0:01:23]} 18... Rxe4 {[%clk 0:01:22.9]} 19. Qf6
{[%clk 0:01:21.3]} 19... Bf8 {[%clk 0:00:35.1]} 20. Bxf8 {[%clk 0:01:20.6]}
20... Kxf8 {[%clk 0:00:32.2]} 21. Qxg6 {[%clk 0:01:21.3]} 21... Qg3+ {[%clk
0:00:22.6]} 22. Kh1 {[%clk 0:01:21.5]} 22... Qxh3+ {[%clk 0:00:23.5]} 23. Kg1
{[%clk 0:01:21.7]} 23... Rxg4+ {[%clk 0:00:24.9]} 24. Qxg4 {[%clk 0:01:16.4]}
24... Qxg4+ {[%clk 0:00:23.8]} 25. Kh2 {[%clk 0:01:12.6]} 25... Qh4+ {[%clk
0:00:20.6]} 26. Kg2 {[%clk 0:01:13]} 26... Qe4+ {[%clk 0:00:21.5]} 27. Rf3
{[%clk 0:01:05.5]} 27... f5 {[%clk 0:00:19.2]} 28. Rf1 {[%clk 0:01:02.3]} 28...
Nd7 {[%clk 0:00:19.3]} 29. Bd3 {[%clk 0:00:57.7]} 29... Qg4+ {[%clk 0:00:19.4]}
30. Kf2 {[%clk 0:00:49.4]} 30... Qxd4+ {[%clk 0:00:19.9]} 31. Ke2 {[%clk
0:00:45.1]} 31... Qxb2 {[%clk 0:00:16.8]} 32. Rxf5+ {[%clk 0:00:44.5]} 32... Ke7
{[%clk 0:00:18]} 33. Rf7+ {[%clk 0:00:44.8]} 33... Kd6 {[%clk 0:00:18.8]} 34.
Rh7 {[%clk 0:00:34.1]} 34... Re8+ {[%clk 0:00:19.1]} 35. Kd2 {[%clk 0:00:33.7]}
35... Qb4+ {[%clk 0:00:18.6]} 36. Kc1 {[%clk 0:00:32.4]} 36... Re1+ {[%clk
0:00:18.2]} 37. Rxe1 {[%clk 0:00:31.8]} 37... Qxe1+ {[%clk 0:00:19.6]} 38. Kb2
{[%clk 0:00:33.2]} 38... Qe5+ {[%clk 0:00:18.8]} 39. c3 {[%clk 0:00:33.5]} 39...
b6 {[%clk 0:00:15.2]} 40. Rh6+ {[%clk 0:00:31.9]} 40... Kc7 {[%clk 0:00:15.8]}
41. Rh7 {[%clk 0:00:24.8]} 41... Kd6 {[%clk 0:00:09.6]} 42. Rh6+ {[%clk
0:00:25.2]} 42... Kc5 {[%clk 0:00:08.2]} 43. Rh4 {[%clk 0:00:19.1]} 43... Nf6
{[%clk 0:00:08]} 44. Rc4+ {[%clk 0:00:19.5]} 44... Kd6 {[%clk 0:00:09.1]} 45.
Rd4+ {[%clk 0:00:18.8]} 45... Kc7 {[%clk 0:00:09.5]} 46. Rh4 {[%clk 0:00:18.1]}
46... b5 {[%clk 0:00:09.8]} 47. Rd4 {[%clk 0:00:16.4]} 47... Nd5 {[%clk
0:00:08.2]} 48. Kb3 {[%clk 0:00:09.8]} 48... Kb6 {[%clk 0:00:08.6]} 49. Rh4
{[%clk 0:00:05.7]} 49... a5 {[%clk 0:00:09.1]} 50. c4 {[%clk 0:00:05.6]} 50...
Qc3# {[%clk 0:00:09.3]} 0

[Event "Open Nuevo Centro. Jornada 1"]
[Site "Chess.com"]
[Date "2020.06.19"]
[Round "4"]
[White "Sanchez Saez, Francisco"]
[Black "Yuste Valenzuela, Alejandro"]
[Result "1-0"]
[WhiteElo "2279"]
[BlackElo "1792"]
[TimeControl "180+2"]
[EndTime "11:17:17 PDT"]
[Termination "Victoria de Pacman1995 por abandono"]

1. Nf3 {[%clk 0:03:01.6]} 1... Nf6 {[%clk 0:03:00.3]} 2. g3 {[%clk 0:03:02.7]}
2... g6 {[%clk 0:03:01.3]} 3. Bg2 {[%clk 0:03:04.6]} 3... Bg7 {[%clk 0:03:02.3]}
4. O-O {[%clk 0:03:06.5]} 4... d6 {[%clk 0:03:03.5]} 5. c4 {[%clk 0:03:06.7]}
5... O-O {[%clk 0:03:04.6]} 6. d4 {[%clk 0:03:08.1]} 6... Bf5 {[%clk 0:03:04.5]}
7. Nc3 {[%clk 0:03:08.8]} 7... Ne4 {[%clk 0:03:04.8]} 8. Qb3 {[%clk 0:03:09.1]}
8... Nxc3 {[%clk 0:03:05.2]} 9. bxc3 {[%clk 0:03:09.8]} 9... Bc8 {[%clk
0:03:04.2]} 10. e4 {[%clk 0:03:05.6]} 10... c5 {[%clk 0:03:04.9]} 11. Be3 {[%clk
0:03:06.2]} 11... Nc6 {[%clk 0:03:03.8]} 12. Rfd1 {[%clk 0:02:59]} 12... Qb6
{[%clk 0:03:00.3]} 13. Rab1 {[%clk 0:02:37.8]} 13... Qxb3 {[%clk 0:02:56.5]} 14.
axb3 {[%clk 0:02:39.7]} 14... b6 {[%clk 0:02:53]} 15. e5 {[%clk 0:02:36.5]}
15... Bb7 {[%clk 0:02:26.1]} 16. exd6 {[%clk 0:02:28.6]} 16... exd6 {[%clk
0:02:28]} 17. b4 {[%clk 0:02:30.1]} 17... cxb4 {[%clk 0:02:10.7]} 18. cxb4
{[%clk 0:02:32]} 18... Rac8 {[%clk 0:02:10.9]} 19. c5 {[%clk 0:02:28.9]} 19...
dxc5 {[%clk 0:02:08.6]} 20. bxc5 {[%clk 0:02:29.6]} 20... Ba8 {[%clk 0:01:51]}
21. cxb6 {[%clk 0:02:29.5]} 21... axb6 {[%clk 0:01:52.9]} 22. Rxb6 {[%clk
0:02:31.1]} 22... Ne7 {[%clk 0:01:45.7]} 23. Ne5 {[%clk 0:02:24.2]} 23... Bxg2
{[%clk 0:01:44.3]} 24. Kxg2 {[%clk 0:02:26.1]} 24... Nd5 {[%clk 0:01:40.7]} 25.
Rb3 {[%clk 0:02:26.6]} 25... Nxe3+ {[%clk 0:01:36.9]} 26. Rxe3 {[%clk
0:02:28.5]} 26... Bxe5 {[%clk 0:01:36.4]} 27. dxe5 {[%clk 0:02:25.9]} 27... Rcd8
{[%clk 0:01:36.1]} 28. Rb1 {[%clk 0:02:24.1]} 28... Rfe8 {[%clk 0:01:36.7]} 29.
Rb7 {[%clk 0:02:23.9]} 29... Re6 {[%clk 0:01:36.2]} 30. h4 {[%clk 0:02:18.7]}
30... h5 {[%clk 0:01:34.9]} 31. Rc7 {[%clk 0:02:17.8]} 31... Rde8 {[%clk
0:01:29.9]} 32. f4 {[%clk 0:02:18]} 32... Rd8 {[%clk 0:01:31.2]} 33. Rb3 {[%clk
0:02:09.5]} 33... Rd2+ {[%clk 0:01:18.8]} 34. Kf3 {[%clk 0:02:09.9]} 34... Ra6
{[%clk 0:00:58.2]} 35. Rb8+ {[%clk 0:01:57.6]} 35... Kg7 {[%clk 0:00:58.3]} 36.
Rbb7 {[%clk 0:01:58.9]} 36... Ra3+ {[%clk 0:00:58.5]} 37. Ke4 {[%clk 0:01:59.9]}
37... Re2+ {[%clk 0:00:59.2]} 38. Kd5 {[%clk 0:01:56.6]} 38... Rd2+ {[%clk
0:00:56.9]} 39. Kc5 {[%clk 0:01:52.1]} 39... Rc3+ {[%clk 0:00:54.8]} 40. Kb4
{[%clk 0:01:49.2]} 40... Rxc7 {[%clk 0:00:55]} 41. Rxc7 {[%clk 0:01:51.1]} 41...
Kf8 {[%clk 0:00:48.7]} 42. Rc3 {[%clk 0:01:44.3]} 42... Rd7 {[%clk 0:00:47.4]}
43. Kc4 {[%clk 0:01:44]} 43... Ke7 {[%clk 0:00:46.6]} 44. Rd3 {[%clk 0:01:45.1]}
44... Rc7+ {[%clk 0:00:46.5]} 45. Kd4 {[%clk 0:01:45.9]} 45... Ke6 {[%clk
0:00:43.4]} 46. Ke4 {[%clk 0:01:44.9]} 46... Rc4+ {[%clk 0:00:43.9]} 47. Rd4
{[%clk 0:01:45.1]} 47... Rc7 {[%clk 0:00:35.4]} 48. Rd6+ {[%clk 0:01:45.8]}
48... Ke7 {[%clk 0:00:36.1]} 49. Rd4 {[%clk 0:01:42.9]} 49... Ke6 {[%clk
0:00:36.6]} 50. Rd6+ {[%clk 0:01:40.3]} 50... Ke7 {[%clk 0:00:37.7]} 51. Kd3
{[%clk 0:01:42.2]} 51... Ra7 {[%clk 0:00:35.4]} 52. Ke3 {[%clk 0:01:39.7]} 52...
Ra3+ {[%clk 0:00:32.8]} 53. Rd3 {[%clk 0:01:41]} 53... Ra7 {[%clk 0:00:34.2]}
54. Rb3 {[%clk 0:01:42]} 54... Rc7 {[%clk 0:00:32.6]} 55. f5 {[%clk 0:01:36.2]}
55... gxf5 {[%clk 0:00:16.6]} 56. Kf4 {[%clk 0:01:37]} 56... Rc5 {[%clk
0:00:07.9]} 57. Kxf5 {[%clk 0:01:35.9]} 57... Rc4 {[%clk 0:00:07.5]} 58. Kg5
{[%clk 0:01:31.9]} 58... Rc5 {[%clk 0:00:08.2]} 59. Kxh5 {[%clk 0:01:33.3]}
59... Rxe5+ {[%clk 0:00:09.2]} 60. Kg4 {[%clk 0:01:34.3]} 60... Re4+ {[%clk
0:00:09.2]} 61. Kf5 {[%clk 0:01:35]} 61... Re6 {[%clk 0:00:09.3]} 62. h5 {[%clk
0:01:36.2]} 62... Rf6+ {[%clk 0:00:10]} 63. Kg5 {[%clk 0:01:37.7]} 63... Re6
{[%clk 0:00:10.8]} 64. g4 {[%clk 0:01:38.6]} 64... f6+ {[%clk 0:00:11.6]} 65.
Kg6 {[%clk 0:01:39.1]} 65... Rd6 {[%clk 0:00:10.6]} 66. Re3+ {[%clk 0:01:38.6]}
66... Kf8 {[%clk 0:00:11.1]} 67. Ra3 {[%clk 0:01:35.2]} 67... Ke7 {[%clk
0:00:11.5]} 68. Ra7+ {[%clk 0:01:36]} 68... Kf8 {[%clk 0:00:12.4]} 69. Rf7+
{[%clk 0:01:35.8]} 69... Kg8 {[%clk 0:00:11.8]} 70. Rxf6 {[%clk 0:01:37]} 70...
Rxf6+ {[%clk 0:00:13]} 71. Kxf6 {[%clk 0:01:37.9]} 71... Kh7 {[%clk 0:00:14.9]}
72. g5 {[%clk 0:01:38.5]} 72... Kg8 {[%clk 0:00:16.8]} 73. g6 {[%clk 0:01:37.2]}
73... Kh8 {[%clk 0:00:17.2]} 74. g7+ {[%clk 0:01:37.1]} 74... Kh7 {[%clk
0:00:17.9]} 75. Kf7 {[%clk 0:01:37.7]} 1

[Event "Open Nuevo Centro. Jornada 1"]
[Site "Chess.com"]
[Date "2020.06.19"]
[Round "4"]
[White "Birnoveanu, Petru"]
[Black "Fern�ndez Mart�n, Berta"]
[Result "1-0"]
[WhiteElo "1566"]
[BlackElo "987"]
[TimeControl "180+2"]
[EndTime "11:17:22 PDT"]
[Termination "Victoria de piculet por abandono"]

1. e4 {[%clk 0:03:01.9]} 1... e5 {[%clk 0:02:59.4]} 2. Bc4 {[%clk 0:03:01.8]}
2... Nc6 {[%clk 0:02:54.8]} 3. Nf3 {[%clk 0:03:02]} 3... Nf6 {[%clk 0:02:47.9]}
4. d3 {[%clk 0:02:59.9]} 4... d6 {[%clk 0:02:46.2]} 5. Bg5 {[%clk 0:02:59.5]}
5... h6 {[%clk 0:02:41.1]} 6. Bxf6 {[%clk 0:02:59.3]} 6... Qxf6 {[%clk
0:02:39.2]} 7. O-O {[%clk 0:02:59.5]} 7... Bg4 {[%clk 0:02:37.6]} 8. Bb5 {[%clk
0:02:51.6]} 8... Be7 {[%clk 0:02:22.7]} 9. Bxc6+ {[%clk 0:02:51.2]} 9... bxc6
{[%clk 0:02:20.6]} 10. Nbd2 {[%clk 0:02:51.9]} 10... Rb8 {[%clk 0:02:18.1]} 11.
b3 {[%clk 0:02:52]} 11... O-O {[%clk 0:02:15.9]} 12. h3 {[%clk 0:02:52.8]} 12...
Bh5 {[%clk 0:02:07.2]} 13. g4 {[%clk 0:02:53.2]} 13... Bg6 {[%clk 0:02:03.6]}
14. Nh2 {[%clk 0:02:53.5]} 14... d5 {[%clk 0:01:58.1]} 15. f3 {[%clk 0:02:36.4]}
15... Bc5+ {[%clk 0:01:44.2]} 16. Kg2 {[%clk 0:02:34.6]} 16... h5 {[%clk
0:01:42.5]} 17. Qe2 {[%clk 0:02:19.8]} 17... hxg4 {[%clk 0:01:39.5]} 18. fxg4
{[%clk 0:02:19.1]} 18... Qg5 {[%clk 0:01:34]} 19. Ndf3 {[%clk 0:02:11.7]} 19...
Qe3 {[%clk 0:01:21.7]} 20. Qxe3 {[%clk 0:02:12.1]} 20... Bxe3 {[%clk 0:01:21]}
21. exd5 {[%clk 0:02:12.9]} 21... cxd5 {[%clk 0:01:20.3]} 22. Nxe5 {[%clk
0:02:13.5]} 22... Bd4 {[%clk 0:01:15]} 23. Nd7 {[%clk 0:02:14]} 23... Bxa1
{[%clk 0:01:14]} 24. Rxa1 {[%clk 0:02:13.1]} 24... Rbe8 {[%clk 0:01:08]} 25.
Nxf8 {[%clk 0:02:11.2]} 25... Kxf8 {[%clk 0:01:08.2]} 26. Rf1 {[%clk 0:02:09.1]}
26... Re2+ {[%clk 0:01:07.4]} 27. Rf2 {[%clk 0:02:09.7]} 27... Re1 {[%clk
0:01:06.1]} 28. a4 {[%clk 0:02:06.3]} 28... Ke7 {[%clk 0:00:55.7]} 29. Nf3
{[%clk 0:02:06.4]} 29... Ra1 {[%clk 0:00:50.5]} 30. Ne5 {[%clk 0:02:01.7]} 30...
Kd6 {[%clk 0:00:15.7]} 31. Re2 {[%clk 0:01:20]} 31... Rc1 {[%clk 0:00:07]} 32.
h4 {[%clk 0:01:14.3]} 32... Bh7 {[%clk 0:00:06.4]} 33. Nxf7+ {[%clk 0:01:13.7]}
33... Kd7 {[%clk 0:00:07.1]} 34. Ne5+ {[%clk 0:01:08.5]} 34... Kd8 {[%clk
0:00:05.1]} 35. Nc6+ {[%clk 0:01:07.9]} 35... Kd7 {[%clk 0:00:05.6]} 36. Nxa7
{[%clk 0:01:06.1]} 36... Bg8 {[%clk 0:00:06.3]} 37. Nb5 {[%clk 0:01:04.8]} 37...
Be6 {[%clk 0:00:04]} 38. g5 {[%clk 0:01:03]} 38... Bg4 {[%clk 0:00:03.8]} 39.
Rf2 {[%clk 0:01:02.5]} 39... Bd1 {[%clk 0:00:02.4]} 40. Rf7+ {[%clk 0:00:44.8]}
40... Kd8 {[%clk 0:00:03.2]} 41. Rxc7 {[%clk 0:00:43.6]} 41... Bg4 {[%clk
0:00:03.2]} 42. Rc5 {[%clk 0:00:39.4]} 42... Rd1 {[%clk 0:00:04]} 43. Rxd5+
{[%clk 0:00:35.3]} 43... Ke7 {[%clk 0:00:05.9]} 44. Rc5 {[%clk 0:00:35.5]} 44...
Rd2+ {[%clk 0:00:06.5]} 45. Kg3 {[%clk 0:00:35.4]} 45... Bh5 {[%clk 0:00:05.4]}
46. Nd4 {[%clk 0:00:35.9]} 46... Bg6 {[%clk 0:00:05.4]} 47. a5 {[%clk
0:00:35.8]} 47... Rd1 {[%clk 0:00:05.3]} 48. b4 {[%clk 0:00:34.5]} 48... Ra1
{[%clk 0:00:06.4]} 49. Nf3 {[%clk 0:00:26.9]} 49... Ra2 {[%clk 0:00:06.3]} 50.
Ne5 {[%clk 0:00:25.9]} 50... Be8 {[%clk 0:00:06.6]} 51. c3 {[%clk 0:00:24]}
51... Ra3 {[%clk 0:00:05.8]} 52. d4 {[%clk 0:00:24.4]} 52... Ra1 {[%clk
0:00:06.1]} 53. Nd3 {[%clk 0:00:20.6]} 53... Rg1+ {[%clk 0:00:06.9]} 54. Kf2
{[%clk 0:00:18.3]} 54... Rd1 {[%clk 0:00:07.9]} 55. Nf4 {[%clk 0:00:17.9]} 55...
Rd2+ {[%clk 0:00:07.9]} 56. Ke3 {[%clk 0:00:17.2]} 56... Rh2 {[%clk 0:00:08.9]}
57. Rc7+ {[%clk 0:00:15.4]} 57... Kd8 {[%clk 0:00:09.5]} 58. Rxg7 {[%clk
0:00:15.6]} 58... Rxh4 {[%clk 0:00:09.8]} 59. g6 {[%clk 0:00:15.6]} 59... Rh3+
{[%clk 0:00:10.6]} 60. Nxh3 {[%clk 0:00:15.2]} 60... Bd7 {[%clk 0:00:11.3]} 61.
Rxd7+ {[%clk 0:00:15.3]} 61... Kxd7 {[%clk 0:00:12.6]} 62. g7 {[%clk 0:00:15.6]}
1